[Event "Late-Titled-Tuesday-Blitz-April-30-2024"]
[Site "Chess.com"]
[Date "2024.04.30"]
[Round "4"]
[White "MatthewG-p4p"]
[Black "SpeedofLight0"]
[Result "1/2-1/2"]
[WhiteElo "2860"]
[BlackElo "3027"]
[TimeControl "180+1"]
[EndTime "14:42:35 PDT"]
[Termination "Game drawn by 50-move rule"]

1. e4 {[%clk 0:02:58.4]} 1... Nc6 {[%clk 0:02:58.7]} 2. Nf3 {[%clk 0:02:57.7]}
2... d6 {[%clk 0:02:58.5]} 3. d4 {[%clk 0:02:47.7]} 3... Nf6 {[%clk 0:02:58.5]}
4. Nc3 {[%clk 0:02:47.6]} 4... g6 {[%clk 0:02:59]} 5. d5 {[%clk 0:02:43.6]} 5...
Nb8 {[%clk 0:02:58.8]} 6. Bc4 {[%clk 0:02:43.2]} 6... Bg7 {[%clk 0:02:58.5]} 7.
h3 {[%clk 0:02:43.9]} 7... O-O {[%clk 0:02:58.7]} 8. O-O {[%clk 0:02:44.7]} 8...
c6 {[%clk 0:02:59.4]} 9. Re1 {[%clk 0:02:44.8]} 9... b5 {[%clk 0:02:43]} 10. Bb3
{[%clk 0:02:45.2]} 10... a5 {[%clk 0:02:42.4]} 11. a3 {[%clk 0:02:44.1]} 11...
Bb7 {[%clk 0:02:37.4]} 12. Nd4 {[%clk 0:02:39.9]} 12... b4 {[%clk 0:02:35.8]}
13. dxc6 {[%clk 0:02:26.8]} 13... Nxc6 {[%clk 0:02:34.8]} 14. Nxc6 {[%clk
0:02:25.3]} 14... Bxc6 {[%clk 0:02:35.7]} 15. Nd5 {[%clk 0:02:25.8]} 15... e6
{[%clk 0:02:20]} 16. Nxf6+ {[%clk 0:02:20.4]} 16... Bxf6 {[%clk 0:02:20.9]} 17.
axb4 {[%clk 0:02:19.3]} 17... axb4 {[%clk 0:02:10.3]} 18. Rxa8 {[%clk
0:02:17.9]} 18... Bxa8 {[%clk 0:02:11.2]} 19. Bf4 {[%clk 0:02:12.7]} 19... d5
{[%clk 0:01:45.1]} 20. exd5 {[%clk 0:02:05.5]} 20... Bxd5 {[%clk 0:01:44.2]} 21.
Bxd5 {[%clk 0:02:04.3]} 21... Qxd5 {[%clk 0:01:39.5]} 22. Qxd5 {[%clk 0:02:03]}
22... exd5 {[%clk 0:01:40.4]} 23. Bd6 {[%clk 0:01:57.6]} 23... Rc8 {[%clk
0:01:38.7]} 24. Bxb4 {[%clk 0:01:56.1]} 24... Bxb2 {[%clk 0:01:35.2]} 25. Rd1
{[%clk 0:01:53.6]} 25... Rc4 {[%clk 0:01:15.5]} 26. Bd6 {[%clk 0:01:49.6]} 26...
d4 {[%clk 0:00:58.4]} 27. Be5 {[%clk 0:01:43.3]} 27... Rc5 {[%clk 0:00:52]} 28.
f4 {[%clk 0:01:23.1]} 28... Rc6 {[%clk 0:00:26.8]} 29. Rd2 {[%clk 0:01:14.9]}
29... Bc1 {[%clk 0:00:23.2]} 30. Rd3 {[%clk 0:01:00.9]} 30... Rxc2 {[%clk
0:00:21.2]} 31. Bxd4 {[%clk 0:00:54.7]} 31... Bxf4 {[%clk 0:00:21.1]} 32. Bf6
{[%clk 0:00:52.6]} 32... Rc8 {[%clk 0:00:15.9]} 33. Kf2 {[%clk 0:00:47.9]} 33...
h5 {[%clk 0:00:13.5]} 34. Kf3 {[%clk 0:00:46.6]} 34... Bh6 {[%clk 0:00:13.2]}
35. g4 {[%clk 0:00:46.6]} 35... hxg4+ {[%clk 0:00:07.2]} 36. hxg4 {[%clk
0:00:47.5]} 36... Bg7 {[%clk 0:00:07.3]} 37. Bxg7 {[%clk 0:00:45.1]} 37... Kxg7
{[%clk 0:00:08.2]} 38. g5 {[%clk 0:00:44.4]} 38... Rc5 {[%clk 0:00:06.2]} 39.
Kg4 {[%clk 0:00:44.1]} 39... Kf8 {[%clk 0:00:06.9]} 40. Re3 {[%clk 0:00:43]}
40... Rc4+ {[%clk 0:00:06.6]} 41. Kg3 {[%clk 0:00:43.3]} 41... Rc6 {[%clk
0:00:07.5]} 42. Kf4 {[%clk 0:00:42.8]} 42... Re6 {[%clk 0:00:07.3]} 43. Ra3
{[%clk 0:00:43]} 43... Rd6 {[%clk 0:00:07]} 44. Re3 {[%clk 0:00:42.6]} 44... Rd5
{[%clk 0:00:06.6]} 45. Re2 {[%clk 0:00:42]} 45... Ra5 {[%clk 0:00:06.2]} 46. Re3
{[%clk 0:00:42]} 46... Ra7 {[%clk 0:00:06.5]} 47. Re2 {[%clk 0:00:42.1]} 47...
Re7 {[%clk 0:00:06.7]} 48. Ra2 {[%clk 0:00:42.1]} 48... Ke8 {[%clk 0:00:04.5]}
49. Ra8+ {[%clk 0:00:42.2]} 49... Kd7 {[%clk 0:00:05.2]} 50. Ra7+ {[%clk
0:00:43.1]} 50... Kd6 {[%clk 0:00:05.7]} 51. Ra6+ {[%clk 0:00:43.4]} 51... Kd5
{[%clk 0:00:06.1]} 52. Ra5+ {[%clk 0:00:43.7]} 52... Kd4 {[%clk 0:00:06.3]} 53.
Ra4+ {[%clk 0:00:43.2]} 53... Kd3 {[%clk 0:00:06.8]} 54. Ra3+ {[%clk 0:00:43.5]}
54... Ke2 {[%clk 0:00:06.8]} 55. Ra2+ {[%clk 0:00:42.5]} 55... Kf1 {[%clk
0:00:06.6]} 56. Rb2 {[%clk 0:00:35.4]} 56... Re2 {[%clk 0:00:03.1]} 57. Rb7
{[%clk 0:00:29.6]} 57... Kg2 {[%clk 0:00:03.2]} 58. Rb8 {[%clk 0:00:18.6]} 58...
Rf2+ {[%clk 0:00:02.5]} 59. Kg4 {[%clk 0:00:16.2]} 59... Ra2 {[%clk 0:00:02.4]}
60. Rb4 {[%clk 0:00:16]} 60... Re2 {[%clk 0:00:02]} 61. Rf4 {[%clk 0:00:14.8]}
61... Re7 {[%clk 0:00:01.9]} 62. Ra4 {[%clk 0:00:12.4]} 62... Rc7 {[%clk
0:00:01.9]} 63. Ra2+ {[%clk 0:00:12.4]} 63... Kf1 {[%clk 0:00:02.1]} 64. Kf3
{[%clk 0:00:12.5]} 64... Rc3+ {[%clk 0:00:02]} 65. Kg4 {[%clk 0:00:13.1]} 65...
Rc5 {[%clk 0:00:01.6]} 66. Ra7 {[%clk 0:00:11.3]} 66... Rf5 {[%clk 0:00:02.1]}
67. Ra2 {[%clk 0:00:09.8]} 67... Rf2 {[%clk 0:00:02.1]} 68. Ra7 {[%clk
0:00:06.5]} 68... Kg2 {[%clk 0:00:02.2]} 69. Rb7 {[%clk 0:00:03.6]} 69... Kh2
{[%clk 0:00:02.6]} 70. Rc7 {[%clk 0:00:03.9]} 70... Rg2+ {[%clk 0:00:03]} 71.
Kh4 {[%clk 0:00:04.5]} 71... Rf2 {[%clk 0:00:02.6]} 72. Kg4 {[%clk 0:00:04.8]}
72... Kg1 {[%clk 0:00:02.9]} 73. Rc1+ {[%clk 0:00:05]} 73... Kg2 {[%clk
0:00:02.4]} 74. Rc7 {[%clk 0:00:05.9]} 74... Rf3 {[%clk 0:00:01.8]} 75. Rc2+
{[%clk 0:00:06.1]} 75... Rf2 {[%clk 0:00:02.5]} 76. Rc4 {[%clk 0:00:06.9]} 76...
Kh2 {[%clk 0:00:02.4]} 77. Re4 {[%clk 0:00:07.3]} 77... Rg2+ {[%clk 0:00:02.7]}
78. Kh4 {[%clk 0:00:08.1]} 78... Rb2 {[%clk 0:00:03.3]} 79. Kg4 {[%clk
0:00:08.5]} 79... Rb7 {[%clk 0:00:03.6]} 80. Rc4 {[%clk 0:00:08.8]} 80... Kg2
{[%clk 0:00:03.8]} 81. Rc2+ {[%clk 0:00:09.2]} 81... Kf1 {[%clk 0:00:04.4]} 82.
Kf3 {[%clk 0:00:10.1]} 82... Rb3+ {[%clk 0:00:04.2]} 83. Kg4 {[%clk 0:00:10.7]}
83... Rb5 {[%clk 0:00:03.5]} 84. Rc7 {[%clk 0:00:10.6]} 84... Rb4+ {[%clk
0:00:03.3]} 85. Kg3 {[%clk 0:00:10.7]} 85... Rb3+ {[%clk 0:00:03.5]} 86. Kg4
{[%clk 0:00:11.2]} 86... Rb4+ {[%clk 0:00:02.6]} 87. Kg3 {[%clk 0:00:11.6]}
87... Rb3+ {[%clk 0:00:03.2]} 88. Kg4 {[%clk 0:00:12.1]} 1/2-1/2

[Event "Late-Titled-Tuesday-Blitz-April-30-2024"]
[Site "Chess.com"]
[Date "2024.04.30"]
[Round "4"]
[White "BardArtem"]
[Black "Cipy77"]
[Result "1-0"]
[WhiteElo "2789"]
[BlackElo "2575"]
[TimeControl "180+1"]
[EndTime "14:42:37 PDT"]
[Termination "BardArtem won by resignation"]

1. e4 {[%clk 0:03:00.9]} 1... d6 {[%clk 0:02:58.5]} 2. d4 {[%clk 0:03:00.4]}
2... g6 {[%clk 0:02:58.2]} 3. Nc3 {[%clk 0:02:57.4]} 3... Bg7 {[%clk 0:02:58.4]}
4. Nf3 {[%clk 0:02:48.5]} 4... a6 {[%clk 0:02:57.5]} 5. Bc4 {[%clk 0:02:43.2]}
5... b5 {[%clk 0:02:55.5]} 6. Bd5 {[%clk 0:02:42.3]} 6... c6 {[%clk 0:02:55.2]}
7. Bb3 {[%clk 0:02:42]} 7... Nf6 {[%clk 0:02:52]} 8. Qe2 {[%clk 0:02:25.5]} 8...
O-O {[%clk 0:02:50.1]} 9. O-O {[%clk 0:02:22.7]} 9... e6 {[%clk 0:02:13.9]} 10.
e5 {[%clk 0:02:21.3]} 10... Nd5 {[%clk 0:02:13]} 11. Ne4 {[%clk 0:02:19.4]}
11... dxe5 {[%clk 0:02:12.8]} 12. dxe5 {[%clk 0:02:20.3]} 12... Nd7 {[%clk
0:02:13.2]} 13. Bg5 {[%clk 0:02:13]} 13... Qc7 {[%clk 0:02:13.3]} 14. Bxd5
{[%clk 0:02:11.2]} 14... cxd5 {[%clk 0:02:12.5]} 15. Nf6+ {[%clk 0:02:11.7]}
15... Kh8 {[%clk 0:02:10.2]} 16. c3 {[%clk 0:01:53.9]} 16... Bb7 {[%clk
0:02:07.2]} 17. Qe3 {[%clk 0:01:40.6]} 17... Rac8 {[%clk 0:01:46.9]} 18. h4
{[%clk 0:01:31.1]} 18... d4 {[%clk 0:01:38.8]} 19. cxd4 {[%clk 0:01:24]} 19...
Bxf3 {[%clk 0:01:37.2]} 20. Qxf3 {[%clk 0:01:22]} 20... h6 {[%clk 0:01:11.6]}
21. Bf4 {[%clk 0:01:20.1]} 21... Rfd8 {[%clk 0:00:42]} 22. Rac1 {[%clk
0:01:16.8]} 22... Qa7 {[%clk 0:00:41.6]} 23. Rxc8 {[%clk 0:00:29.8]} 23... Rxc8
{[%clk 0:00:42.5]} 24. d5 {[%clk 0:00:29]} 24... exd5 {[%clk 0:00:38.1]} 25.
Nxd5 {[%clk 0:00:11.8]} 25... Nxe5 {[%clk 0:00:33.8]} 26. Bxe5 {[%clk 0:00:12]}
26... Bxe5 {[%clk 0:00:34.7]} 27. b3 {[%clk 0:00:11.4]} 27... h5 {[%clk
0:00:32.6]} 28. g3 {[%clk 0:00:11.3]} 28... Bg7 {[%clk 0:00:32.3]} 29. Kg2
{[%clk 0:00:11.3]} 29... Re8 {[%clk 0:00:30.9]} 30. Rd1 {[%clk 0:00:11.1]} 30...
Qb7 {[%clk 0:00:30.3]} 31. Ne3 {[%clk 0:00:09.7]} 31... Qe7 {[%clk 0:00:28.8]}
32. a4 {[%clk 0:00:09]} 32... bxa4 {[%clk 0:00:27.8]} 33. bxa4 {[%clk
0:00:09.9]} 33... Qe4 {[%clk 0:00:26.6]} 34. a5 {[%clk 0:00:06.5]} 34... Qxf3+
{[%clk 0:00:23.5]} 35. Kxf3 {[%clk 0:00:07.4]} 35... Re5 {[%clk 0:00:24]} 36.
Rd7 {[%clk 0:00:07.3]} 36... Kg8 {[%clk 0:00:21.4]} 37. Nd5 {[%clk 0:00:04]}
37... Rf5+ {[%clk 0:00:20.4]} 38. Kg2 {[%clk 0:00:04.2]} 38... Re5 {[%clk
0:00:19.6]} 39. Ne7+ {[%clk 0:00:03.2]} 39... Kf8 {[%clk 0:00:17.4]} 40. Nc6
{[%clk 0:00:03.4]} 40... Re6 {[%clk 0:00:16.7]} 41. Rd8+ {[%clk 0:00:02.2]}
41... Re8 {[%clk 0:00:17.2]} 42. Rd6 {[%clk 0:00:02.9]} 42... Bc3 {[%clk
0:00:16.3]} 43. Rd3 {[%clk 0:00:01.9]} 43... Bf6 {[%clk 0:00:16.2]} 44. Rd6
{[%clk 0:00:01.7]} 44... Kg7 {[%clk 0:00:15.3]} 45. Rd3 {[%clk 0:00:02.2]} 45...
Rc8 {[%clk 0:00:15]} 46. Nb4 {[%clk 0:00:02.7]} 46... Rc5 {[%clk 0:00:13.7]} 47.
Ra3 {[%clk 0:00:03.3]} 47... Be7 {[%clk 0:00:12.5]} 48. Nxa6 {[%clk 0:00:03.6]}
48... Rc6 {[%clk 0:00:12.9]} 49. Nb8 {[%clk 0:00:03.5]} 49... Rc8 {[%clk
0:00:07.6]} 50. Rb3 {[%clk 0:00:03.9]} 50... Bd6 {[%clk 0:00:07.5]} 51. Nd7
{[%clk 0:00:02.4]} 51... Ra8 {[%clk 0:00:07.1]} 52. Rb5 {[%clk 0:00:03.1]} 52...
Ra7 {[%clk 0:00:07.4]} 53. Nb6 {[%clk 0:00:03.7]} 53... Kf6 {[%clk 0:00:07.2]}
54. Kf3 {[%clk 0:00:04.3]} 54... Ke6 {[%clk 0:00:07.7]} 55. Ke4 {[%clk
0:00:04.4]} 55... Bc7 {[%clk 0:00:07.6]} 56. Nc4 {[%clk 0:00:03.9]} 56... Ra6
{[%clk 0:00:06.8]} 57. Rc5 {[%clk 0:00:03.3]} 57... Bd8 {[%clk 0:00:07.1]} 58.
Re5+ {[%clk 0:00:03.2]} 58... Kf6 {[%clk 0:00:07.3]} 59. Rd5 {[%clk 0:00:04.1]}
59... Ke7 {[%clk 0:00:06.6]} 60. Re5+ {[%clk 0:00:04.4]} 60... Kf6 {[%clk
0:00:05.4]} 61. f3 {[%clk 0:00:05]} 61... Be7 {[%clk 0:00:05.1]} 62. g4 {[%clk
0:00:04.3]} 62... hxg4 {[%clk 0:00:05.5]} 63. fxg4 {[%clk 0:00:05.2]} 63... Bd8
{[%clk 0:00:05.9]} 64. g5+ {[%clk 0:00:05.1]} 64... Kg7 {[%clk 0:00:06.5]} 65.
Rd5 {[%clk 0:00:05.4]} 65... Be7 {[%clk 0:00:06.2]} 66. Rb5 {[%clk 0:00:04.5]}
66... Kf8 {[%clk 0:00:06.1]} 67. Kd5 {[%clk 0:00:04.9]} 67... Re6 {[%clk
0:00:05.7]} 68. Ne5 {[%clk 0:00:03.7]} 68... Ra6 {[%clk 0:00:05]} 69. Nc6 {[%clk
0:00:03.9]} 69... Ba3 {[%clk 0:00:01.3]} 70. Rb6 {[%clk 0:00:03.8]} 70... Ra8
{[%clk 0:00:02.2]} 71. Rb8+ {[%clk 0:00:04.2]} 71... Rxb8 {[%clk 0:00:02.8]} 72.
Nxb8 {[%clk 0:00:05.1]} 72... Bc1 {[%clk 0:00:03.5]} 73. Ke4 {[%clk 0:00:04.4]}
73... Be3 {[%clk 0:00:04.4]} 74. Kxe3 {[%clk 0:00:04.6]} 74... Ke7 {[%clk
0:00:05.3]} 75. a6 {[%clk 0:00:05.5]} 1-0

[Event "Late-Titled-Tuesday-Blitz-April-30-2024"]
[Site "Chess.com"]
[Date "2024.04.30"]
[Round "4"]
[White "Meri-Arabidze"]
[Black "ExchangeAB"]
[Result "1-0"]
[WhiteElo "2684"]
[BlackElo "2449"]
[TimeControl "180+1"]
[EndTime "14:42:45 PDT"]
[Termination "Meri-Arabidze won on time"]

1. Nf3 {[%clk 0:03:00.9]} 1... d5 {[%clk 0:02:59.8]} 2. c4 {[%clk 0:03:00.7]}
2... c6 {[%clk 0:03:00]} 3. g3 {[%clk 0:03:00.7]} 3... Nf6 {[%clk 0:03:00.1]} 4.
Bg2 {[%clk 0:03:00.8]} 4... e6 {[%clk 0:02:58.5]} 5. O-O {[%clk 0:03:00.7]} 5...
Nbd7 {[%clk 0:02:59.2]} 6. b3 {[%clk 0:03:00.9]} 6... g6 {[%clk 0:02:58.4]} 7.
Bb2 {[%clk 0:03:00.8]} 7... Bg7 {[%clk 0:02:59]} 8. d3 {[%clk 0:02:58.4]} 8...
O-O {[%clk 0:02:59.2]} 9. Nbd2 {[%clk 0:02:57.5]} 9... b6 {[%clk 0:02:56.4]} 10.
Qc2 {[%clk 0:02:53.2]} 10... Bb7 {[%clk 0:02:56.3]} 11. Rac1 {[%clk 0:02:52.9]}
11... Rc8 {[%clk 0:02:54.9]} 12. Qb1 {[%clk 0:02:53]} 12... Nh5 {[%clk
0:02:49.7]} 13. Bxg7 {[%clk 0:02:52]} 13... Nxg7 {[%clk 0:02:49.8]} 14. e4
{[%clk 0:02:47.5]} 14... c5 {[%clk 0:02:45.4]} 15. exd5 {[%clk 0:02:35.8]} 15...
exd5 {[%clk 0:02:45.2]} 16. d4 {[%clk 0:02:32.8]} 16... Ne6 {[%clk 0:02:29.1]}
17. dxc5 {[%clk 0:02:29.2]} 17... Ndxc5 {[%clk 0:02:27.9]} 18. cxd5 {[%clk
0:02:23.6]} 18... Bxd5 {[%clk 0:02:25.2]} 19. Rfd1 {[%clk 0:02:22.8]} 19... Qf6
{[%clk 0:02:20.2]} 20. Qc2 {[%clk 0:01:56.6]} 20... Rcd8 {[%clk 0:02:14.7]} 21.
Qc3 {[%clk 0:01:46.5]} 21... Qxc3 {[%clk 0:02:11.2]} 22. Rxc3 {[%clk 0:01:47.4]}
22... Bxf3 {[%clk 0:02:10.2]} 23. Bxf3 {[%clk 0:01:47]} 23... Nd4 {[%clk
0:02:07.1]} 24. Kg2 {[%clk 0:01:06.9]} 24... Rfe8 {[%clk 0:01:51.6]} 25. Rdc1
{[%clk 0:00:55.8]} 25... Ne2 {[%clk 0:01:49.1]} 26. Bxe2 {[%clk 0:00:53.4]}
26... Rxd2 {[%clk 0:01:48.5]} 27. Bb5 {[%clk 0:00:50.7]} 27... Re4 {[%clk
0:01:43.5]} 28. R1c2 {[%clk 0:00:47.6]} 28... Red4 {[%clk 0:01:41.7]} 29. Bc4
{[%clk 0:00:30.4]} 29... Kg7 {[%clk 0:01:36.5]} 30. a4 {[%clk 0:00:23.6]} 30...
Ne4 {[%clk 0:01:35.5]} 31. Rxd2 {[%clk 0:00:23]} 31... Rxd2 {[%clk 0:01:32.7]}
32. Rf3 {[%clk 0:00:23]} 32... f5 {[%clk 0:01:27.1]} 33. h4 {[%clk 0:00:23.2]}
33... Rb2 {[%clk 0:01:24.3]} 34. Bd5 {[%clk 0:00:18]} 34... Nf6 {[%clk
0:01:14.6]} 35. Bc4 {[%clk 0:00:17.7]} 35... a5 {[%clk 0:01:13.9]} 36. Re3
{[%clk 0:00:15.8]} 36... Ne4 {[%clk 0:01:13.6]} 37. Re2 {[%clk 0:00:14]} 37...
Rxe2 {[%clk 0:01:11.9]} 38. Bxe2 {[%clk 0:00:14.9]} 38... Kf6 {[%clk 0:01:12.1]}
39. Bc4 {[%clk 0:00:12.9]} 39... h6 {[%clk 0:01:08.6]} 40. Kf3 {[%clk
0:00:11.3]} 40... Ke5 {[%clk 0:01:06.4]} 41. Ke3 {[%clk 0:00:11.2]} 41... g5
{[%clk 0:01:06.5]} 42. hxg5 {[%clk 0:00:11]} 42... hxg5 {[%clk 0:01:07.4]} 43.
Bd3 {[%clk 0:00:08.7]} 43... Nc5 {[%clk 0:01:05.5]} 44. Bc4 {[%clk 0:00:08.7]}
44... f4+ {[%clk 0:01:01.3]} 45. gxf4+ {[%clk 0:00:09.6]} 45... gxf4+ {[%clk
0:01:02.2]} 46. Kf3 {[%clk 0:00:10]} 46... Ne4 {[%clk 0:01:01.4]} 47. Bg8 {[%clk
0:00:07.7]} 47... Nd2+ {[%clk 0:00:55.2]} 48. Kg4 {[%clk 0:00:07.1]} 48... Ne4
{[%clk 0:00:43.8]} 49. Kf3 {[%clk 0:00:07.3]} 49... Nc5 {[%clk 0:00:43.6]} 50.
Bc4 {[%clk 0:00:06.6]} 50... Nd7 {[%clk 0:00:38.5]} 51. Bb5 {[%clk 0:00:06.9]}
51... Nf6 {[%clk 0:00:37.8]} 52. Bc4 {[%clk 0:00:07.5]} 52... Kf5 {[%clk
0:00:38]} 53. Bd3+ {[%clk 0:00:07.3]} 53... Kg5 {[%clk 0:00:37.3]} 54. Bc4
{[%clk 0:00:08.2]} 54... Ng4 {[%clk 0:00:37.3]} 55. Be6 {[%clk 0:00:07.4]} 55...
Ne5+ {[%clk 0:00:35.8]} 56. Ke4 {[%clk 0:00:07.5]} 56... Nc6 {[%clk 0:00:34.5]}
57. Bc4 {[%clk 0:00:07.7]} 57... Ne7 {[%clk 0:00:24.1]} 58. f3 {[%clk
0:00:07.2]} 58... Ng6 {[%clk 0:00:23.4]} 59. Kd5 {[%clk 0:00:07.1]} 59... Nh4
{[%clk 0:00:22.2]} 60. Be2 {[%clk 0:00:06.2]} 60... Nf5 {[%clk 0:00:19.1]} 61.
Bd3 {[%clk 0:00:06.5]} 61... Nh4 {[%clk 0:00:18.8]} 62. Be4 {[%clk 0:00:05.9]}
62... Kf6 {[%clk 0:00:13.4]} 63. Kc6 {[%clk 0:00:05.8]} 63... Ke5 {[%clk
0:00:10.7]} 64. Kxb6 {[%clk 0:00:06.2]} 64... Kd4 {[%clk 0:00:11.1]} 65. Kxa5
{[%clk 0:00:06.6]} 65... Ke3 {[%clk 0:00:12]} 66. b4 {[%clk 0:00:07]} 66... Nxf3
{[%clk 0:00:12.7]} 67. Bxf3 {[%clk 0:00:04.3]} 67... Kxf3 {[%clk 0:00:13.6]} 68.
b5 {[%clk 0:00:05]} 68... Ke3 {[%clk 0:00:11.6]} 69. b6 {[%clk 0:00:05.9]} 69...
f3 {[%clk 0:00:12.5]} 70. b7 {[%clk 0:00:06.4]} 70... f2 {[%clk 0:00:13.4]} 71.
b8=Q {[%clk 0:00:06.8]} 71... f1=Q {[%clk 0:00:13.7]} 72. Qe5+ {[%clk
0:00:06.3]} 72... Kd2 {[%clk 0:00:11.1]} 73. Qd4+ {[%clk 0:00:06.2]} 73... Kc2
{[%clk 0:00:08.9]} 74. Kb6 {[%clk 0:00:05]} 74... Qf7 {[%clk 0:00:01.9]} 75.
Qc5+ {[%clk 0:00:04.6]} 75... Kd3 {[%clk 0:00:01]} 76. a5 {[%clk 0:00:05]} 76...
Ke2 {[%clk 0:00:01.4]} 77. Qb5+ {[%clk 0:00:04]} 77... Kf2 {[%clk 0:00:00.9]}
78. a6 {[%clk 0:00:04.7]} 78... Kg2 {[%clk 0:00:01]} 79. Qc6+ {[%clk 0:00:04.9]}
79... Kh2 {[%clk 0:00:00.9]} 80. a7 {[%clk 0:00:05.8]} 80... Qb3+ {[%clk
0:00:00.3]} 81. Kc7 {[%clk 0:00:06.2]} 81... Qf7+ {[%clk 0:00:00.3]} 82. Kb8
{[%clk 0:00:06.3]} 82... Qf8+ {[%clk 0:00:00.2]} 83. Qc8 {[%clk 0:00:06.4]}
83... Qb4+ {[%clk 0:00:00.2]} 84. Kc7 {[%clk 0:00:05.8]} 84... Qc5+ {[%clk
0:00:00.8]} 85. Kb8 {[%clk 0:00:05.9]} 85... Qb6+ {[%clk 0:00:01.1]} 86. Qb7
{[%clk 0:00:05.3]} 86... Qd8+ {[%clk 0:00:01.5]} 87. Qc8 {[%clk 0:00:05.7]}
87... Qb6+ {[%clk 0:00:01.2]} 88. Ka8 {[%clk 0:00:05.9]} 88... Qa6 {[%clk
0:00:01]} 89. Qxa6 {[%clk 0:00:05.9]} 1-0